fUSD/lending_fUSD_20240602
["ID","MTS","AMOUNT","RATE_DAILY","PERIOD"]
[328412031,1717365033831,-500.0,0.00019999,2]
[328412032,1717365033841,-500.0,0.00019999,2]
[328412033,1717365033850,-500.0,0.00019999,2]
[328412034,1717365033859,-500.0,0.00019999,2]
[328412035,1717365033869,-500.0,0.00019999,2]
[328412036,1717365033879,-500.0,0.00019999,2]
[328412037,1717365033889,-500.0,0.00019999,2]
[328412038,1717365033898,-500.0,0.00019999,2]
[328412039,1717365033908,-500.0,0.00019999,2]
[328412040,1717365033917,-500.0,0.00019999,2]
[328412041,1717365033927,-500.0,0.00019999,2]
[328412042,1717365033937,-500.0,0.00019999,2]
[328412043,1717365033946,-500.0,0.00019999,2]
[328412044,1717365033955,-500.0,0.00019999,2]
[328412045,1717365033965,-500.0,0.00019999,2]
[328412046,1717365033974,-500.0,0.00019999,2]
[328412047,1717365033983,-500.0,0.00019999,2]
[328412048,1717365033993,-500.0,0.00019999,2]
[328412049,1717365034002,-500.0,0.00019999,2]
[328412050,1717365034011,-500.0,0.00019999,2]
[328412051,1717365034021,-500.0,0.00019999,2]
[328412052,1717365034031,-500.0,0.00019999,2]
[328412053,1717365034040,-500.0,0.00019999,2]
[328412054,1717365034050,-500.0,0.00019999,2]
[328412055,1717365034059,-500.0,0.00019999,2]
[328412056,1717365034069,-550.0,0.00019999,2]
[328412057,1717365034078,-500.0,0.00019999,2]
[328412058,1717365034088,-500.0,0.00019999,2]
[328412059,1717365034097,-500.0,0.00019999,2]
[328412060,1717365034106,-500.0,0.00019999,2]
[328412061,1717365034117,-500.0,0.00019999,2]
[328412062,1717365034127,-500.0,0.00019999,2]
[328412063,1717365034137,-500.0,0.00019999,2]
[328412064,1717365034148,-500.0,0.00019999,2]
[328412065,1717365034158,-500.0,0.00019999,2]
[328412066,1717365034168,-500.0,0.00019999,2]
[328412067,1717365034177,-500.0,0.00019999,2]
[328412068,1717365034188,-1010.14454915,0.0002,2]
[328412069,1717365034198,-155.0,0.0002,2]
[328412070,1717365034208,-189065.69294696,0.0002,4]
[328412071,1717365034218,-30029.94,0.0002,2]
[328412072,1717365034228,-3926.35,0.00020022,2]
[328412073,1717365034238,-226.50923576,0.000201,2]
[328412074,1717365034248,-210.0,0.00020129,2]
[328412075,1717365034257,-174.36,0.00020269,2]
[328412076,1717365034268,-1000.0,0.00020355,2]
[328412077,1717365034278,-175.235,0.00020592,2]
[328412078,1717365034287,-175.235,0.00020685,2]
[328412079,1717365034297,-175.235,0.00020779,2]
[328412080,1717365034307,-175.235,0.00020874,2]
[328412081,1717365034317,-3926.35,0.00020932,2]
[328412082,1717365034327,-175.235,0.0002097,2]
[328412083,1717365034338,-300.0,0.0002099,2]
[328412084,1717365034348,-175.235,0.00021066,2]
[328412085,1717365034358,-175.235,0.00021164,2]
[328412086,1717365034368,-175.235,0.00021262,2]
[328412087,1717365034378,-175.235,0.00021361,2]
[328412088,1717365034388,-175.235,0.00021461,2]
[328412089,1717365034398,-481.11,0.00021627,2]
[328412090,1717365034408,-3926.35,0.00021842,2]
[328412091,1717365034417,-328.6,0.00021918,2]
[328412092,1717365034427,-177.17,0.00021918,2]
[328412093,1717365034437,-250.0,0.00021918,2]
[328412094,1717365034446,-5618.47,0.00021922,2]
[328412095,1717365034456,-150.0,0.0002206,2]
[328412096,1717365034466,-273.0,0.00022142,2]
[328412097,1717365034475,-11461.88674564,0.00022299,2]
[328412098,1717365034485,-300.0,0.0002236,2]
[328412099,1717365034615,-2214.0,0.000226,2]
[328412100,1717365034626,-250.0,0.00022608,2]
[328412101,1717365034636,-268.8570025,0.00022644,2]
[328412102,1717365034645,-1000.0,0.00022899,2]
[328412103,1717365034655,-163.0,0.00022998,2]
[328412104,1717365034664,-350.0,0.00023156,2]
[328412105,1717365034674,-11729.0,0.000232,3]
[328412106,1717365034683,-11729.0,0.000237,5]
[328412107,1717365034692,-545.54297139,0.00023704,2]
[328412108,1717365034702,-481.11,0.00023891,2]
[328412109,1717365034711,-683.58,0.00024174,2]
[328412110,1717365034720,-3896.23,0.00024174,2]
[328412111,1717365034730,-360.8718556,0.0002421,2]
[328412112,1717365034739,-180.0,0.0002423,2]
[328412113,1717365034749,-427.98,0.00024384,2]
[328412114,1717365034758,-5618.47,0.00024661,2]
[328412115,1717365034767,-346.52705223,0.00024667,2]
[328412116,1717365034777,-11461.88674564,0.00024698,2]
[328412117,1717365034790,-166.1,0.00024767,2]
[328412118,1717365034799,-14441.4876278,0.00024798,2]
[328412119,1717365034808,-14441.48762777,0.00024798,2]
[328412120,1717365034818,-14441.48762777,0.00024798,2]
[328412121,1717365034828,-14441.48762777,0.00024798,2]
[328412122,1717365034838,-814.31472748,0.00024799,2]
[328412123,1717365034847,-814.31472745,0.00024799,2]
[328412124,1717365034856,-814.31472745,0.00024799,2]
[328412125,1717365034868,-814.31472745,0.00024799,2]
[328412126,1717365034878,-1250.0,0.00025,2]
[328412127,1717365034887,-325.53303523,0.00025,2]
[328412128,1717365034896,-1000.0,0.00025205,2]
[328412129,1717365034905,-268.8570025,0.00025295,2]
[328412130,1717365034915,-1274.90079038,0.00025299,2]
[328412131,1717365034924,-1000.0,0.00025443,2]
[328412132,1717365034933,-602.4,0.00025538,2]
[328412133,1717365034943,-814.31472745,0.00025806,2]
[328412134,1717365034952,-14441.48762777,0.00025811,2]
[328412135,1717365034961,-191.12,0.0002589,2]
[328412136,1717365034972,-163.0,0.00025998,2]
[328412137,1717365034981,-481.11,0.00026155,2]
[328412138,1717365034991,-13050.49,0.00026301,2]
[328412139,1717365034999,-2678.99,0.00026446,2]
[328412140,1717365035009,-2678.99,0.00026453,2]
[328412141,1717365035018,-2678.99,0.0002646,2]
[328412142,1717365035027,-2678.99,0.00026467,2]
[328412143,1717365035038,-2678.99,0.00026474,2]
[328412144,1717365035047,-2678.99,0.00026481,2]
[328412145,1717365035056,-2678.99,0.00026488,2]
[328412146,1717365035065,-2678.99,0.00026495,2]
[328412147,1717365035076,-2678.99,0.00026501,2]
[328412148,1717365035085,-2678.99,0.00026508,2]
[328412149,1717365035095,-2678.99,0.00026515,2]
[328412150,1717365035106,-2678.99,0.00026522,2]
[328412151,1717365035115,-2678.99,0.00026529,2]
[328412152,1717365035126,-2678.99,0.00026536,2]
[328412153,1717365035135,-2678.99,0.00026543,2]
[328412154,1717365035144,-2678.99,0.0002655,2]
[328412155,1717365035154,-2678.99,0.00026557,2]
[328412156,1717365035163,-2678.99,0.00026564,2]
[328412157,1717365035177,-2678.99,0.00026571,2]
[328412158,1717365035186,-2678.99,0.00026578,2]
[328412159,1717365035197,-2053.44124277,0.000266,2]
[328412160,1717365035207,-254.94952496,0.00026689,2]
[328412161,1717365035218,-23445.03544886,0.00026699,5]
[328412162,1717365035227,-1300.0,0.00027,2]
[328412163,1717365035237,-150.0,0.00027,2]
[328412164,1717365035246,-814.31472745,0.00027282,2]
[328412165,1717365035255,-14441.48762777,0.00027289,2]
[328412166,1717365035264,-420.63866142,0.0002739,2]
[328412167,1717365035274,-150.0,0.00027397,2]
[328412168,1717365035283,-1500.0,0.00027891,2]
[328412169,1717365035293,-268.8570025,0.00027945,2]
[328412170,1717365035302,-1000.0,0.00027988,2]
[328412171,1717365035311,-8916.99460983,0.00028,2]
[328412172,1717365035321,-150.0,0.00028118,2]
[328412173,1717365035331,-1500.0,0.00028381,2]
[328412174,1717365035343,-481.11,0.00028419,2]
[328412175,1717365035352,-257.0,0.00028593,5]
[328412176,1717365035362,-814.31472745,0.00028759,2]
[328412177,1717365035371,-14441.48762777,0.00028767,2]
[328412178,1717365035380,-150.0,0.00028839,2]
[328412179,1717365035390,-275.5395,0.00028899,2]
[328412180,1717365035399,-265.68702935,0.000289,2]
[328412181,1717365035408,-346.52705223,0.00028934,2]
[328412182,1717365035417,-800.0,0.00028959,2]
[328412183,1717365035427,-155.0,0.00028997,2]
[328412184,1717365035436,-155.0,0.00028997,2]
[328412185,1717365035446,-163.0,0.00028998,2]
[328412186,1717365035456,-155.19970267,0.00028998,2]
[328412187,1717365035465,-345.11104325,0.00028998,2]
[328412188,1717365035474,-155.0,0.00028999,2]
[328412189,1717365035483,-155.0,0.00028999,2]
[328412190,1717365035493,-4163.8478063,0.00029,2]
[328412191,1717365035502,-1350.0,0.00029,2]
[328412192,1717365035512,-163.91,0.00029159,2]
[328412193,1717365035521,-163.91,0.00029159,2]
[328412194,1717365035531,-163.91,0.00029159,2]
[328412195,1717365035541,-150.0,0.00029208,2]
[328412196,1717365035551,-150.0,0.00029232,2]
[328412197,1717365035560,-150.0,0.00029241,2]
[328412198,1717365035569,-150.0,0.00029296,2]
[328412199,1717365035580,-150.0,0.00029309,2]
[328412200,1717365035590,-150.0,0.00029388,2]
[328412201,1717365035600,-150.0,0.00029454,2]
[328412202,1717365035611,-150.0,0.00029492,2]
[328412203,1717365035622,-150.0,0.00029493,2]
[328412204,1717365035632,-150.0,0.00029545,2]
[328412205,1717365035642,-150.0,0.00029556,2]
[328412206,1717365035651,-150.0,0.0002956,2]
[328412207,1717365035660,-150.0,0.00029573,2]
[328412208,1717365035669,-150.0,0.00029603,2]
[328412209,1717365035678,-150.0,0.00029615,2]
[328412210,1717365035688,-1500.0,0.00029651,2]
[328412211,1717365035697,-150.0,0.00029666,2]
[328412212,1717365035707,-150.0,0.00029674,2]
[328412213,1717365035716,-1500.0,0.00029676,2]
[328412214,1717365035726,-150.0,0.00029694,2]
[328412215,1717365035736,-150.0,0.00029711,2]
[328412216,1717365035745,-166.1,0.0002972,2]
[328412217,1717365035754,-150.0,0.00029744,2]
[328412218,1717365035763,-150.0,0.00029754,2]
[328412219,1717365035775,-449.183129,0.0002976,2]
[328412220,1717365035786,-902.24312609,0.0002977,2]
[328412221,1717365035795,-150.0,0.00029784,2]
[328412222,1717365035805,-150.0,0.0002979,2]
[328412223,1717365035816,-150.0,0.00029802,2]
[328412224,1717365035827,-155.13799655,0.00029862,2]
[328412225,1717365035836,-155.38075971,0.00029862,2]
[328412226,1717365035846,-162.3456247,0.00029862,2]
[328412227,1717365035855,-150.0,0.00029872,2]
[328412228,1717365035865,-150.0,0.00029876,2]
[328412229,1717365035875,-150.0,0.00029888,2]
[328412230,1717365035884,-302.78707862,0.0002989,2]
[328412231,1717365035903,-150.0,0.00029891,2]
[328412232,1717365035914,-2027.82214738,0.000299,2]
[328412233,1717365035923,-300.0,0.00029918,2]
[328412234,1717365035933,-300.0,0.00029919,2]
[328412235,1717365035942,-1500.0,0.00029972,2]
[328412236,1717365035952,-800.0,0.00029973,2]
[328412237,1717365035961,-150.0,0.00029973,2]
[328412238,1717365035971,-150.0,0.00029974,2]
[328412239,1717365035980,-237.7692352,0.00029979,2]
[328412240,1717365035990,-268.20766282,0.00029979,2]
[328412241,1717365035999,-10958.18144295,0.00029979,2]
[328412242,1717365036009,-150.0,0.00029982,2]
[328412243,1717365036018,-150.0,0.00029986,2]
[328412244,1717365036028,-524.41258543,0.00029992,2]
[328412245,1717365036038,-251.23012888,0.00029992,2]
[328412246,1717365036047,-155.0,0.00029993,2]
[328412247,1717365036056,-195.42331331,0.00029993,2]
[328412248,1717365036066,-191.26705497,0.00029993,2]
[328412249,1717365036077,-155.0,0.00029993,2]
[328412250,1717365036087,-475.77611098,0.00029994,2]
[328412251,1717365036096,-974.61478961,0.00029994,2]
[328412252,1717365036106,-155.0,0.00029994,2]
[328412253,1717365036115,-364.53167189,0.00029994,2]
[328412254,1717365036125,-2481.8516519,0.00029994,2]
[328412255,1717365036135,-406.08823349,0.00029994,2]
[328412256,1717365036144,-2004.33284559,0.00029995,2]
[328412257,1717365036154,-624.74565801,0.00029996,2]
[328412258,1717365036164,-156.41264256,0.00029996,2]
[328412259,1717365036173,-155.26392159,0.00029996,2]
[328412260,1717365036184,-210.64268981,0.00029996,2]
[328412261,1717365036193,-5000.0,0.0003,7]
[328412262,1717365036204,-5702.70709465,0.0003,2]
[328412263,1717365036213,-2235.07486009,0.0003,3]
[328412264,1717365036223,-1500.0,0.00030027,2]
[328412265,1717365036236,-150.0,0.00030038,2]
[328412266,1717365036249,-150.0,0.00030049,2]
[328412267,1717365036258,-150.0,0.00030054,2]
[328412268,1717365036268,-150.0,0.00030057,2]
[328412269,1717365036278,-150.0,0.00030067,2]
[328412270,1717365036288,-155.57152469,0.00030082,4]
[328412271,1717365036298,-150.0,0.00030086,2]
[328412272,1717365036308,-150.0,0.00030091,2]
[328412273,1717365036318,-150.0,0.00030092,2]
[328412274,1717365036328,-150.0,0.00030109,2]
[328412275,1717365036338,-150.0,0.0003011,2]
[328412276,1717365036347,-150.0,0.00030128,2]
[328412277,1717365036357,-150.0,0.00030136,2]
[328412278,1717365036367,-150.0,0.00030146,2]
[328412279,1717365036377,-1500.0,0.00030162,2]
[328412280,1717365036387,-150.0,0.00030177,2]
[328412281,1717365036397,-150.0,0.00030212,2]
[328412282,1717365036407,-150.0,0.00030214,2]
[328412283,1717365036417,-150.0,0.00030216,2]
[328412284,1717365036442,-150.0,0.00030229,2]
[328412285,1717365036463,-814.31472745,0.00030235,15]
[328412286,1717365036473,-150.0,0.00030242,2]
[328412287,1717365036483,-150.0,0.00030243,2]
[328412288,1717365036493,-14441.48762777,0.00030244,15]
[328412289,1717365036503,-150.0,0.00030266,2]
[328412290,1717365036657,-150.0,0.00030281,2]
[328412291,1717365036667,-150.0,0.00030302,2]
[328412292,1717365036676,-150.0,0.00030303,2]
[328412293,1717365036686,-427.98,0.0003031,2]
[328412294,1717365036696,-150.0,0.00030329,2]
[328412295,1717365036705,-150.0,0.00030335,2]
[328412296,1717365036715,-153.78103652,0.00030341,2]
[328412297,1717365036725,-150.0,0.00030345,2]
[328412298,1717365036735,-150.0,0.00030353,2]
[328412299,1717365036744,-1500.0,0.00030368,2]
[328412300,1717365036754,-150.0,0.00030379,2]
[328412301,1717365036763,-150.0,0.00030386,2]
[328412302,1717365036773,-150.0,0.00030389,2]
[328412303,1717365036787,-150.0,0.00030398,2]
[328412304,1717365036796,-154.94796708,0.000304,2]
[328412305,1717365036806,-150.0,0.00030407,2]
[328412306,1717365036816,-150.0,0.00030415,2]
[328412307,1717365036826,-150.0,0.00030426,2]
[328412308,1717365036836,-1500.0,0.00030427,2]
[328412309,1717365036846,-150.0,0.00030436,2]
[328412310,1717365036857,-150.0,0.00030438,2]
[328412311,1717365036866,-300.0,0.00030458,2]
[328412312,1717365036876,-300.0,0.00030469,2]
[328412313,1717365036885,-300.0,0.00030478,2]
[328412314,1717365036895,-150.0,0.00030495,2]
[328412315,1717365036905,-150.0,0.00030502,2]
[328412316,1717365036915,-150.0,0.00030519,2]
[328412317,1717365036924,-150.0,0.0003052,2]
[328412318,1717365036933,-150.0,0.00030523,2]
[328412319,1717365036947,-150.0,0.00030524,2]
[328412320,1717365036957,-150.0,0.00030524,2]
[328412321,1717365036967,-150.0,0.00030531,2]
[328412322,1717365036976,-1000.0,0.00030532,2]
[328412323,1717365036986,-150.0,0.00030545,2]
[328412324,1717365036997,-150.0,0.00030546,2]
[328412325,1717365037007,-150.0,0.00030551,2]
[328412326,1717365037016,-300.0,0.00030564,2]
[328412327,1717365037027,-150.0,0.00030566,2]
[328412328,1717365037037,-150.0,0.00030566,2]
[328412329,1717365037047,-150.0,0.0003057,2]
[328412330,1717365037057,-150.0,0.00030574,2]
[328412331,1717365037067,-1500.0,0.00030591,2]
[328412332,1717365037078,-150.0,0.00030592,2]
[328412333,1717365037089,-268.8570025,0.00030596,2]
[328412334,1717365037099,-164.8953632,0.00030596,2]
[328412335,1717365037109,-150.0,0.00030598,2]
[328412336,1717365037119,-5730.75930978,0.00030599,2]
[328412337,1717365037129,-150.0,0.000306,6]
[328412338,1717365037139,-150.0,0.00030621,2]
[328412339,1717365037149,-150.0,0.00030642,2]
[328412340,1717365037159,-150.0,0.00030643,2]
[328412341,1717365037168,-150.0,0.00030651,2]
[328412342,1717365037178,-151.0,0.00030653,2]
[328412343,1717365037188,-599.29699399,0.0003067,4]
[328412344,1717365037198,-150.0,0.00030671,2]
[328412345,1717365037208,-150.0,0.00030671,2]
[328412346,1717365037219,-150.0,0.00030679,2]
[328412347,1717365037229,-481.11,0.00030682,2]
[328412348,1717365037239,-151.15,0.00030686,2]
[328412349,1717365037248,-254.94952496,0.0003069,2]
[328412350,1717365037258,-155.0,0.00030693,2]
[328412351,1717365037268,-150.0,0.00030695,2]
[328412352,1717365037278,-1478.371355,0.00030695,2]
[328412353,1717365037288,-553.6068299,0.00030695,2]
[328412354,1717365037298,-300.0,0.00030695,2]
[328412355,1717365037309,-411.07546451,0.00030696,2]
[328412356,1717365037319,-325.46904445,0.00030696,4]
[328412357,1717365037329,-718.3503353,0.00030696,4]
[328412358,1717365037340,-4018.77640235,0.00030696,2]
[328412359,1717365037350,-187.20328758,0.00030696,4]
[328412360,1717365037360,-155.0,0.00030696,4]
[328412361,1717365037370,-158.77642645,0.00030696,4]
[328412362,1717365037380,-155.0,0.00030696,2]
[328412363,1717365037390,-155.0,0.00030696,4]
[328412364,1717365037400,-1776.83731686,0.00030696,4]
[328412365,1717365037410,-863.22198171,0.00030696,3]
[328412366,1717365037420,-155.0,0.00030696,4]
[328412367,1717365037431,-6250.33014992,0.00030696,4]
[328412368,1717365037440,-9014.24515507,0.00030696,4]
[328412369,1717365037450,-1646.37288355,0.00030696,4]
[328412370,1717365037460,-789.02916967,0.00030696,4]
[328412371,1717365037470,-155.22259674,0.00030696,4]
[328412372,1717365037480,-200.12058988,0.00030696,4]
[328412373,1717365037490,-55086.02346031,0.00030696,4]
[328412374,1717365037512,-284.1080006,0.00030696,4]
[328412375,1717365037524,-1078.78165656,0.00030696,4]
[328412376,1717365037536,-4064.0,0.00030696,4]
[328412377,1717365037568,-6643.9959,0.00030696,4]
[328412378,1717365037582,-2342.7166896,0.00030696,4]
[328412379,1717365037595,-775.19666386,0.00030696,4]
[328412380,1717365037607,-574.02169455,0.00030696,4]
[328412381,1717365037636,-376.27888447,0.00030696,4]
[328412382,1717365037648,-312.75876885,0.00030696,4]
[328412383,1717365037660,-503.15430007,0.00030696,4]
[328412384,1717365037687,-27286.1865127,0.00030696,4]
[328412385,1717365037755,-2064.34630503,0.00030696,4]
[328412402,1717365040955,-283.274,0.00019998,2]
[328412403,1717365040964,-500.0,0.0002466,2]
[328412404,1717365040973,-118.87863318,0.0002466,2]
[328412405,1717365040985,-404.38209956,0.0002466,2]
[328412406,1717365040994,-313.08935168,0.0002466,2]
[328412407,1717365041004,-140.07019949,0.0002466,2]
[328412408,1717365041015,-359.92980051,0.0002466,2]
[328412409,1717365041024,-446.92265068,0.0002466,2]
[328412410,1717365041033,-500.0,0.0002466,2]
[328412411,1717365041043,-500.0,0.0002466,2]
[328412412,1717365041052,-411.86730704,0.0002466,2]
[328412413,1717365041061,-406.59404633,0.0002466,2]
[328412414,1717365041073,-93.40595367,0.0002466,2]
[328412415,1717365041082,-500.0,0.0002466,2]
[328412416,1717365041091,-500.0,0.0002466,2]
[328412417,1717365041100,-500.0,0.0002466,2]
[328412418,1717365041109,-451.76768325,0.00027397,2]
[328412419,1717365041118,-150.0,0.00029346,2]
[328412420,1717365041127,-150.0,0.0002935,2]
[328412421,1717365041136,-150.0,0.00029368,2]
[328412422,1717365041145,-150.0,0.00029373,2]
[328412423,1717365041155,-150.0,0.00029375,2]
[328412424,1717365041164,-150.0,0.00029391,2]
[328412425,1717365041173,-150.0,0.00029408,2]
[328412426,1717365041182,-150.0,0.00029413,2]
[328412427,1717365041191,-150.0,0.00029415,2]
[328412428,1717365041200,-150.0,0.00029495,2]
[328412429,1717365041209,-150.0,0.00029497,2]
[328412430,1717365041218,-150.0,0.00029561,2]
[328412431,1717365041227,-150.0,0.00029586,2]
[328412432,1717365041237,-150.0,0.00029592,2]
[328412433,1717365041246,-150.0,0.00029603,2]
[328412434,1717365041256,-150.0,0.00029669,2]
[328412435,1717365041265,-150.0,0.00029783,2]
[328412436,1717365041274,-150.0,0.00029804,2]
[328412437,1717365041283,-150.0,0.00029832,2]
[328412438,1717365041293,-150.0,0.00029849,2]
[328412439,1717365041302,-150.0,0.00029877,2]
[328412440,1717365041311,-150.0,0.00029904,2]
[328412441,1717365041320,-150.0,0.00029919,2]
[328412442,1717365041330,-150.0,0.0002998,2]
[328412443,1717365041340,-150.0,0.00029987,2]
[328412444,1717365041349,-150.0,0.00030003,2]
[328412445,1717365041358,-150.0,0.0003005,2]
[328412446,1717365041368,-150.0,0.00030084,2]
[328412447,1717365041377,-150.0,0.0003009,2]
[328412448,1717365041386,-150.0,0.00030136,2]
[328412449,1717365041396,-150.0,0.00030149,2]
[328412450,1717365041405,-150.0,0.00030174,2]
[328412451,1717365041415,-150.0,0.00030175,2]
[328412452,1717365041424,-150.0,0.0003029,2]
[328412453,1717365041434,-150.0,0.00030315,2]
[328412454,1717365041443,-150.0,0.00030374,2]
[328412455,1717365041452,-150.0,0.00030378,2]
[328412456,1717365041461,-150.0,0.00030383,2]
[328412457,1717365041470,-150.0,0.00030389,2]
[328412458,1717365041479,-150.0,0.00030502,2]
[328412459,1717365041489,-150.0,0.00030532,2]
[328412460,1717365041498,-150.0,0.000306,2]
[328412461,1717365041507,-150.0,0.00030643,2]
[328412462,1717365041516,-13610.12201707,0.00030696,4]
[328412463,1717365041533,-3482.01850668,0.00030696,4]
[328412464,1717365041544,-3321.97640317,0.00030696,4]
[328412465,1717365041556,-998.24427031,0.00030696,4]
[328412466,1717365041568,-446.62731363,0.00030696,4]
[328412467,1717365041579,-690.25775999,0.00030696,4]
[328412468,1717365041590,-926.890117,0.00030696,4]
[328412469,1717365041601,-9330.62614975,0.00030696,4]
[328412470,1717365041613,-572.78982099,0.00030696,4]
[328412471,1717365041624,-19159.59005,0.00030696,4]
[328412472,1717365041635,-93502.03714033,0.00030696,4]
[328412473,1717365041661,-166283.26133144,0.00030696,4]
[328412474,1717365041673,-671.16000004,0.00030696,4]
[328412475,1717365041684,-1168.91354638,0.00030696,4]
[328412476,1717365041696,-1659.99434364,0.00030696,4]
[328412477,1717365041707,-2040.00565636,0.00030696,4]
[328412478,1717365041842,-527.14081138,0.00030696,4]
[328412479,1717365041853,-10120.18943194,0.00030696,4]
[328412480,1717365041864,-1856.5631075,0.00030696,4]
[328412481,1717365041876,-1869.7443923,0.00030696,4]
[328412482,1717365041886,-11877.042274,0.00030696,4]
[328412483,1717365041898,-1010.92811315,0.00030696,4]
[328412484,1717365041909,-28322.8141531,0.00030696,4]
[328412485,1717365041924,-1107.84290471,0.00030696,4]
[328412486,1717365041951,-426.35735425,0.00030696,4]
[328412487,1717365041962,-789.30350907,0.00030696,4]
[328412488,1717365041973,-32542.82611893,0.00030696,4]
[328412489,1717365041984,-26381.86697472,0.00030696,4]
[328412490,1717365041995,-1043.4,0.00030696,4]
[328412586,1717365044073,-21031.59728268,0.00030696,4]
[328412588,1717365044087,-339.01,0.00030696,4]
[328412589,1717365044098,-141092.73082474,0.00030696,4]
[328412590,1717365044107,-151.0,0.00030696,7]
[328412591,1717365044117,-151.0,0.00030696,7]
[328412592,1717365044126,-151.0,0.00030696,7]
[328412593,1717365044136,-151.0,0.00030696,7]
[328412594,1717365044145,-151.0,0.00030696,7]
[328412595,1717365044155,-255.599166,0.00030696,7]
[328412596,1717365044164,-255.599166,0.00030696,7]
[328412597,1717365044173,-188.31019,0.00030696,7]
[328412598,1717365044183,-188.31019,0.00030696,7]
[328412599,1717365044192,-151.0,0.00030696,7]
[328412600,1717365044202,-151.0,0.00030696,7]
[328412601,1717365044211,-151.0,0.00030696,7]
[328412602,1717365044221,-153.192831,0.00030696,7]
[328412603,1717365044230,-151.0,0.00030696,7]
[328412604,1717365044239,-151.0,0.00030696,7]
[328412605,1717365044248,-151.0,0.00030696,7]
[328412606,1717365044258,-266.923133,0.00030696,7]
[328412607,1717365044267,-266.923133,0.00030696,7]
[328412608,1717365044276,-158.795025,0.00030696,7]
[328412609,1717365044285,-572.821189,0.00030696,7]
[328412610,1717365044295,-572.821189,0.00030696,7]
[328412611,1717365044304,-151.0,0.00030696,7]
[328412612,1717365044313,-151.0,0.00030696,7]
[328412613,1717365044322,-151.0,0.00030696,7]
[328412614,1717365044332,-151.0,0.00030696,7]
[328412615,1717365044342,-410.585039,0.00030696,7]
[328412616,1717365044351,-151.0,0.00030696,7]
[328412617,1717365044360,-410.585039,0.00030696,7]
[328412618,1717365044369,-151.0,0.00030696,7]
[328412619,1717365044379,-151.0,0.00030696,7]
[328412620,1717365044388,-151.0,0.00030696,7]
[328412621,1717365044398,-151.0,0.00030696,7]
[328412622,1717365044407,-151.0,0.00030696,7]
[328412623,1717365044417,-151.0,0.00030696,7]
[328412624,1717365044426,-151.0,0.00030696,7]
[328412625,1717365044435,-151.0,0.00030696,7]
[328412626,1717365044444,-151.0,0.00030696,7]
[328412627,1717365044454,-1367.10884,0.00030696,7]
[328412628,1717365044463,-1367.10884,0.00030696,7]
[328412629,1717365044473,-1367.10884,0.00030696,7]
[328412630,1717365044482,-1367.10884,0.00030696,7]
[328412631,1717365044491,-151.0,0.00030696,7]
[328412632,1717365044500,-151.0,0.00030696,7]
[328412633,1717365044510,-495.350981,0.00030696,7]
[328412634,1717365044519,-495.350981,0.00030696,7]
[328412635,1717365044528,-151.0,0.00030696,7]
[328412636,1717365044537,-151.0,0.00030696,7]
[328412637,1717365044547,-495.350981,0.00030696,7]
[328412638,1717365044556,-495.350981,0.00030696,7]
[328412639,1717365044565,-151.0,0.00030696,7]
[328412640,1717365044575,-151.0,0.00030696,7]
[328412641,1717365044584,-264.170546,0.00030696,7]
[328412642,1717365044593,-264.170546,0.00030696,7]